[Event "WSTCC-50 2024"]
[Site "Krakow"]
[Date "2024.07.05"]
[Round "4.1"]
[White "Lima, Darcy"]
[Black "Rogowski, Jaroslaw"]
[Result "1-0"]
[ECO "A15"]
[WhiteElo "2392"]
[BlackElo "2149"]
[Annotator "RC"]
[PlyCount "123"]
[EventDate "2024.07.01"]
[EventType "team-tourn"]
[EventCountry "POL"]
[SourceTitle "playchess.com"]
[Source "ChessBase"]
[SourceQuality "1"]
[TimeControl "40/5400+30:1800+30"]

1. c4 {[%emt 0:00:02]} Nf6 {[%emt 0:00:58]} 2. g3 {[%emt 0:00:14]} g6 {[%emt 0:03:29]} 3. Bg2 {[%emt 0:00:11]} Bg7 {[%emt 0:00:02]} 4. Nc3 {[%emt 0:00:22]} O-O {[%emt 0:01:11]} 5. d4 {[%emt 0:00:29]} d6 {[%emt 0:00:29]} 6. h3 {[%emt 0:00:17]} Nbd7 {[%emt 0:10:29]} 7. Nf3 {[%emt 0:00:33]} e5 {[%emt 0:00:36]} 8. O-O {[%emt 0:00:31]} Re8 {[%emt 0:08:15]} 9. e4 {[%emt 0:01:02]} exd4 {[%emt 0:21:49]} 10. Nxd4 {[%emt 0:00:22]} Nc5 {[%emt 0:00:16]} 11. Re1 {[%emt 0:00:21]} a5 {[%emt 0:04:31]} 12. Rb1 {[%emt 0:07:46]} Bd7 {[%emt 0:03:09]} 13. Ndb5 {[%emt 0:02:01]} Qc8 {[%emt 0:03:17]} 14. g4 {[%emt 0:10:14]} Bc6 {[%emt 0:01:10]} 15. f3 {[%emt 0:11:49]} Ne6 {[%emt 0:10:55]} 16. Be3 {[%emt 0:08:30]} g5 {[%emt 0:03:37]} 17. Qd2 {[%emt 0:01:51]} h6 {[%emt 0:00:29]} 18. Ne2 {[%emt 0:03:00]} Nd7 {[%emt 0:00:36]} 19. b3 {[%emt 0:06:34]} Ne5 {[%emt 0:01:22]} 20. Nbd4 {[%emt 0:01:23]} Nxd4 21. Nxd4 {[%emt 0:00:17]} Bd7 {[%emt 0:04:48]} 22. h4 {[%emt 0:04:38]} f6 {[%emt 0:01:45]} 23. a4 {[%emt 0:07:07]} Qd8 {[%emt 0:00:46]} 24. Rbd1 {[%emt 0:01:05]} Qe7 {[%emt 0:01:48]} 25. Nf5 {[%emt 0:01:20]} Qf7 {[%emt 0:01:52]} 26. h5 {[%emt 0:07:57]} b6 {[%emt 0:00:14]} 27. Kh2 {[%emt 0:01:16]} Bf8 {[%emt 0:00:32]} 28. Kh3 {[%emt 0:00:41]} Kh7 {[%emt 0:02:29]} 29. Bd4 {[%emt 0:03:52]} Rad8 {[%emt 0:00:34]} 30. Bc3 {[%emt 0:00:19]} Be6 {[%emt 0:00:35]} 31. f4 {[%emt 0:00:53]} Nd7 {[%emt 0:03:11]} 32. Rf1 {[%emt 0:02:28]} Be7 {[%emt 0:03:28]} 33. Qc2 {[%emt 0:03:55]} Bxf5 {[%emt 0:01:22]} 34. exf5 {[%emt 0:00:09]} gxf4 {[%emt 0:00:09]} 35. Rde1 {[%emt 0:05:19]} Ne5 {[%emt 0:01:04]} 36. Rxf4 {[%emt 0:02:36]} Bf8 {[%emt 0:01:01]} 37. Bd5 {[%emt 0:01:04]} Qd7 {[%emt 0:02:57]} 38. Rd1 {[%emt 0:03:37]} c5 {[%emt 0:01:34]} 39. Re4 {[%emt 0:01:40]} Kh8 {[%emt 0:01:36]} 40. Qg2 {[%emt 0:00:54]} Re7 {[%emt 0:00:37]} 41. Qd2 {[%emt 0:02:56]} Rde8 {[%emt 0:12:42]} 42. Be6 {[%emt 0:05:29]} Qb7 {[%emt 0:00:50]} 43. Qf4 {[%emt 0:00:35]} Qc7 {[%emt 0:02:49]} 44. Re2 {[%emt 0:00:43]} Rh7 {[%emt 0:03:33]} 45. Red2 {[%emt 0:01:08]} Be7 {[%emt 0:00:54]} 46. Rd5 {[%emt 0:03:44]} Kg7 {[%emt 0:07:27]} 47. Kg3 {[%emt 0:01:00]} Rhh8 {[%emt 0:00:28]} 48. Kf2 {[%emt 0:00:40]} Rd8 {[%emt 0:00:31]} 49. Ke2 {[%emt 0:03:42]} Rhf8 {[%emt 0:00:48]} 50. Rg1 {[%emt 0:01:48]} Qb8 {[%emt 0:02:52]} 51. Kd1 {[%emt 0:00:33]} Qc7 {[%emt 0:00:14]} 52. Kc2 {[%emt 0:00:20]} Qb8 {[%emt 0:00:21]} 53. Rd2 {[%emt 0:02:56]} Rh8 {[%emt 0:00:35]} 54. Rdg2 {[%emt 0:01:19]} Kf8 {[%emt 0:02:34]} 55. Qe4 {[%emt 0:01:56]} Qa8 {[%emt 0:00:35]} 56. Bd5 {[%emt 0:00:06]} Qa7 {[%emt 0:00:18]} 57. Bd2 {[%emt 0:00:19]} Rd7 {[%emt 0:00:16]} 58. Bf4 {[%emt 0:00:21]} Ke8 {[%emt 0:00:09]} 59. Bxe5 {[%emt 0:00:36]} fxe5 {[%emt 0:00:30]} 60. Bc6 {[%emt 0:00:05]} Bg5 {[%emt 0:01:10]} 61. Rd1 {[%emt 0:03:20]} Kd8 {[%emt 0:01:31]} 62. Bxd7 {[%emt 0:00:11]} 1-0

[Event "WSTCC-50 2024"]
[Site "Krakow"]
[Date "2024.07.05"]
[Round "4.1"]
[White "Krause, Ullrich"]
[Black "Dishman, Stephen"]
[Result "0-1"]
[ECO "A06"]
[WhiteElo "2171"]
[BlackElo "2308"]
[Annotator "TA"]
[PlyCount "74"]
[EventDate "2024.07.01"]
[EventType "team-tourn"]
[EventCountry "POL"]
[SourceTitle "playchess.com"]
[Source "ChessBase"]
[SourceQuality "1"]
[TimeControl "40/5400+30:1800+30"]

{[%evp 26,74,0,0,0,-41,-32,-38,-33,-35,-42,-350,-355,-350,-341,-336,-316,-315,-318,-315,-297,-295,-255,-311,-316,-339,-322,-304,-279,-346,-320,-552,-552,-566,-539,-652,-670,-807,-790,-786,-780,-1075,-1035,-1054,-1107,-29971,-985,-29982,-29982,-29981,-29982]} 1. Nf3 {[%emt 0:00:06]} d5 {[%emt 0:00:15]} 2. e3 {[%emt 0:01:09]} Nf6 {[%emt 0:01:11]} 3. c4 {[%emt 0:00:31]} e6 {[%emt 0:01:10]} 4. Nc3 {[%emt 0:00:45]} a6 {[%emt 0:03:37]} 5. b3 {[%emt 0:02:25]} c5 {[%emt 0:01:12]} 6. Bb2 {[%emt 0:03:29]} Nc6 {[%emt 0:00:49]} 7. cxd5 {[%emt 0:00:52]} exd5 {[%emt 0:00:46]} 8. d4 {[%emt 0:00:28]} Bd6 {[%emt 0:03:30]} 9. Be2 {[%emt 0:01:12]} O-O {[%emt 0:00:50]} 10. O-O {[%emt 0:00:33]} Re8 {[%emt 0:05:38]} 11. dxc5 {[%emt 0:01:07]} Bxc5 {[%emt 0:01:01]} 12. Rc1 {[%emt 0:00:52]} Ba7 {[%emt 0:01:05]} 13. Na4 {[%emt 0:05:44]} Ne4 {[%emt 0:00:54]} 14. Nd4 {[%emt 0:08:38]} Qg5 {[%emt 0:00:30]} 15. Nxc6 {[%emt 0:10:21]} bxc6 {[%emt 0:00:17]} 16. Bd4 {[%emt 0:01:32]} (16. Rxc6 Nxf2 17. Rxf2 Qxe3 $19) 16... Bh3 {[%emt 0:00:12] Black is slightly better.} 17. Bf3 {[%emt 0:04:47]} Re6 $40 {[%emt 0:00:13][%mdl 128] Black attacks.} 18. Kh1 $2 {[%emt 0:02:47][%mdl 8192] [#]} ({Better is} 18. Rc2 $15) 18... Rg6 $1 $19 {[%emt 0:00:46]} 19. g3 {[%emt 0:08:40]} (19. gxh3 $2 Qg1+ 20. Rxg1 Nxf2#) 19... Bxd4 {[%emt 0:12:18]} 20. Qxd4 {[%emt 0:02:41]} Qf5 {[%emt 0:05:54]} ({Don't take} 20... Bxf1 21. Bxe4 dxe4 22. Rxf1 $19) 21. Bxe4 {[%emt 0:09:48]} dxe4 {[%emt 0:00:15]} 22. f4 {[%emt 0:00:21][%cal Oa4b6]} Bxf1 {[%emt 0:14:38]} 23. Rxf1 {[%emt 0:00:08]} Qd5 {[%emt 0:00:51]} 24. Qxd5 {[%emt 0:07:41]} cxd5 {[%emt 0:00:04][%mdl 4096] Endgame. KRR-KRN} 25. Rd1 {[%emt 0:00:32]} Rd8 {[%emt 0:02:55]} 26. Nc3 {[%emt 0:01:26]} Rgd6 {[%emt 0:01:37]} 27. Rd4 {[%emt 0:04:39]} f5 {[%emt 0:00:57]} 28. Kg2 $2 {[%emt 0:01:09]} (28. Ne2) 28... Rc8 {[%emt 0:04:21]} 29. Nxd5 {[%emt 0:04:26]} Kf7 {[%emt 0:00:28] Wards off Ne7} 30. g4 {[%emt 0:01:22]} Rcd8 {[%emt 0:03:35]} 31. Nc3 {[%emt 0:01:59]} Rxd4 {[%emt 0:00:21]} 32. exd4 {[%emt 0:00:07]} Rxd4 {[%emt 0:00:24]} 33. gxf5 {[%emt 0:00:49] KR-KN} Kf6 {[%emt 0:00:58]} 34. Ne2 {[%emt 0:02:30]} Rd2 {[%emt 0:00:29]} 35. Kf2 {[%emt 0:00:29]} Kxf5 {[%emt 0:01:11]} (35... Rxa2 $142 36. Ke3 Rxe2+ (36... Kxf5 $2 37. Nd4+ Kf6 38. h4 $19) 37. Kxe2 Kxf5 38. b4 Kxf4 39. h3 e3 40. Ke1 Kf3 41. Kf1 e2+ 42. Ke1 h6 43. Kd2 h5 (43... Kf2 {gets mated.} 44. Kd3 e1=Q 45. Kd4 Qxb4+ 46. Ke5 Qb6 47. Kd5 Ke3 48. h4 h5 49. Kc4 Qc6+ 50. Kb4 Kd2 51. Kb3 Qb5+ 52. Ka3 Kc2 53. Ka2 Qb2#) 44. h4 Kf2 45. Kc3 e1=Q+ (45... e1=B+ $2 46. Kd4 $19) 46. Kd4 Qxb4+ 47. Ke5 Ke3 (47... Qxh4 48. Kd6 Qc4 49. Kd7 h4 50. Kd8 h3 51. Ke7 h2 52. Ke8 h1=Q 53. Kf8 Qe6 54. Kxg7 Qhh6#) 48. Kd5 Qe7 (48... Qxh4 {is a self mate.} 49. Ke6 Qf6+ 50. Kd7 Kd4 51. Kc8 Qe7 52. Kb8 Kc5 53. Ka8 Kc6 54. Kb8 Qb7#) 49. Kc4 Qe5 (49... Qxh4+ 50. Kd5 Qf6 51. Kc5 Qe6 52. Kb4 Kd4 53. Ka4 Kc3 54. Ka5 g6 55. Ka4 Qa2#) 50. Kb3 Kd3 51. Kb4 Qb5+ 52. Ka3 Kc2 53. Ka2 Qb2#) 36. h3 {[%emt 0:00:43]} Rxa2 {[%emt 0:00:33]} 37. Ke3 {[%emt 0:00:25] [#]} Rxe2+ $1 {[%emt 0:00:07] White did not feel at home in the position after the opening.   Weighted Error Value: White=1.09/Black=0.29 (precise) .  Loses game:     	White=1     	---        Mistake:       	White=1     	---        Inaccurate:     	White=1     	---        OK:         	White=5     	Black=7      Best:        	---       	Black=1      Strong:       	---       	Black=1} 0-1

[Event "WSTCC-50 2024"]
[Site "Krakow"]
[Date "2024.07.05"]
[Round "4.2"]
[White "Shabalov, Alexander"]
[Black "Godena, Michele"]
[Result "0-1"]
[ECO "D25"]
[WhiteElo "2467"]
[BlackElo "2426"]
[Annotator "TA"]
[PlyCount "116"]
[EventDate "2024.07.01"]
[EventType "team-tourn"]
[EventCountry "POL"]
[SourceTitle "playchess.com"]
[Source "ChessBase"]
[SourceQuality "1"]
[TimeControl "40/5400+30:1800+30"]

{[%evp 54,116,-172,-244,-205,-278,-199,-205,-170,-211,-206,-318,-304,-327,-337,-445,-436,-922,-503,-492,-195,-227,-224,-256,-213,-214,-106,-106,-97,-90,-89,-472,-472,-619,-635,-571,-665,-681,-664,-865,-829,-785,-716,-1708,-1741,-6886,-6873,-6745,-5872,-7052,-6643,-7091,-7052,-7052,-7052,-7045,-7052,-6762,0,-6613,-6137,-6774,-7059,-29972,-29973]} 1. d4 {[%emt 0:00:05] Huzman,Alexander} d5 {[%emt 0:00:09]} 2. c4 {[%emt 0:00:05]} dxc4 {[%emt 0:00:13]} 3. Nf3 {[%emt 0:00:06]} Nf6 {[%emt 0:00:21]} 4. e3 {[%emt 0:00:05]} Bg4 {[%emt 0:14:06]} 5. Bxc4 {[%emt 0:00:22]} e6 {[%emt 0:00:04]} 6. h3 {[%emt 0:00:17]} Bh5 {[%emt 0:00:17]} 7. Nc3 {[%emt 0:00:06]} Nbd7 {[%emt 0:00:47]} 8. Be2 {[%emt 0:02:11]} Bb4 {[%emt 0:07:57] D25: Queen's Gambit Accepted: 4 e3: sidelines and 4...Bg4.} 9. Qb3 {[%emt 0:06:31]} Qe7 $146 {[%emt 0:18:57]} ({Predecessor:} 9... c5 10. O-O O-O 11. Rd1 Bxc3 12. bxc3 Qc7 13. c4 Rac8 14. Ba3 Rfd8 15. Rac1 b6 16. Bb2 h6 17. d5 Re8 18. Bxf6 Nxf6 19. d6 Qb7 20. g4 Bg6 21. Ne5 Red8 22. Nxg6 fxg6 {½-½ Huzman,A (2581)-Cvitan,O (2511) EU-chT (Men) 12th 1999 (2.4)}) 10. a3 {[%emt 0:07:48]} Bxc3+ {[%emt 0:00:37]} 11. bxc3 {[%emt 0:02:19]} Rb8 {[%emt 0:14:37]} 12. c4 {[%emt 0:07:55]} O-O {[%emt 0:06:50]} 13. Bb2 {[%emt 0:00:06]} c5 {[%emt 0:02:46]} 14. O-O {[%emt 0:01:56]} Ne4 {[%emt 0:07:27]} 15. Rfe1 {[%emt 0:14:52]} Bxf3 {[%emt 0:07:14]} 16. gxf3 {[%emt 0:04:20]} Nd6 {[%emt 0:01:28]} 17. Rad1 {[%emt 0:03:53]} cxd4 {[%emt 0:08:38]} 18. exd4 {[%emt 0:02:18]} b5 {[%emt 0:02:05]} 19. c5 {[%emt 0:02:46]} Qg5+ {[%emt 0:02:00]} 20. Kh1 {[%emt 0:01:33]} Nc4 {[%emt 0:00:35]} 21. Rg1 {[%emt 0:12:05]} Qf5 {[%emt 0:01:21]} 22. Rg3 {[%emt 0:00:56]} Nxb2 {[%emt 0:00:32]} 23. Qxb2 {[%emt 0:00:43]} Nf6 {[%emt 0:00:14]} 24. Bd3 {[%emt 0:12:11]} Qf4 {[%emt 0:00:15]} 25. Qe2 {[%emt 0:00:22]} Nd5 {[%emt 0:01:34]} 26. Qe4 {[%emt 0:07:04]} g6 {[%emt 0:00:03]} 27. h4 {[%emt 0:00:32]} Rfd8 {[%emt 0:01:26]} 28. Bc2 {[%emt 0:05:58]} (28. Bf1 {was called for.}) 28... Qf6 {[%emt 0:00:23]} 29. Rd2 {[%emt 0:00:25]} h5 {[%emt 0:00:42]} 30. Rg5 {[%emt 0:01:35]} Rbc8 {[%emt 0:00:33]} 31. Bb3 {[%emt 0:01:33] [#]} Ne7 $1 {[%emt 0:00:22]} 32. f4 {[%emt 0:01:26]} (32. Rd3 {is a better defense.}) 32... Kg7 {[%emt 0:00:44]} 33. Rd3 {[%emt 0:01:18]} Nf5 {[%emt 0:00:28]} 34. d5 {[%emt 0:00:53]} Rxc5 {[%emt 0:00:54]} (34... Nxh4 $2 35. d6 Nf5 36. Qb4 $17) 35. dxe6 {[%emt 0:00:14]} (35. Kh2 $142 exd5 (35... Nxh4 $2 36. Qe3 $19) 36. Bxd5) 35... Rxd3 {[%emt 0:00:17]} 36. Qxd3 {[%emt 0:00:06]} Qc3 $2 {[%emt 0:00:54]} (36... fxe6 $2 37. Qd7+ Kh6 38. Qxe6 $17) (36... Rc1+ 37. Bd1 Qxe6 (37... fxe6 $2 38. Qd2 $19)) 37. Qxc3+ {[%emt 0:00:55]} Rxc3 {[%emt 0:00:01]} 38. e7 {[%emt 0:00:07]} Rc1+ {[%emt 0:00:53]} (38... Rxb3 $2 39. e8=Q (39. e8=B $2 Rxa3 40. Bd7 Ra1+ 41. Kh2 f6 $19) 39... Nxh4 40. Rg3 (40. Rxb5 Rxb5 41. Qxb5 Nf5 $18) (40. Qe5+ Kh7 $18) 40... Rxg3 41. fxg3 $18) 39. Kh2 {[%emt 0:00:16] [#]} Re1 {[%emt 0:00:15]} (39... Nxh4 40. e8=Q (40. e8=R Nf3+ 41. Kg2 Nxg5 $18) 40... Nf3+ 41. Kg2 Nxg5 42. fxg5 Rc4 43. Qe5+ (43. Bxc4 bxc4 44. Qc8 h4 45. Qxc4 Kf8 46. Qc5+ Kg8 47. Qxa7 Kh8) 43... Kf8 44. Qb8+ (44. Bxc4 bxc4 45. Qc5+ Ke8 46. Qxa7 Kd8 47. a4 h4 48. a5 c3) 44... Ke7 45. Qxa7+ (45. Bxc4 bxc4 46. Qc7+ Ke6 47. Qxc4+ Ke7 48. Qa6 h4 49. Qf6+ Kd7 50. Qxf7+ Kd6) 45... Kd6 46. Bxc4) (39... Nxe7 40. Rxb5 Rc7 41. Bd5 $15) (39... Rc8 $1 $19 {[%cal Og7f6] has better winning chances. Strongly threatening ...Kf6!} 40. Ba2 a6 (40... Nxe7 41. Rxb5 Rc2 42. Bb1 $17)) 40. Bc2 $17 {[%emt 0:00:10]} Nxe7 {[%emt 0:00:52]} (40... Nxh4 $2 41. Re5 (41. Rxb5 Rxe7 42. Kg3 Rc7 $11) 41... Nf3+ 42. Kg2 Nxe5 43. e8=Q $18 (43. e8=R $2 Nd3 $19) (43. e8=R $2 Nd3 $19)) 41. Rxb5 {[%emt 0:30:53]} Re2 {[%emt 0:30:17]} 42. Rb7 $2 {[%emt 0:00:28][%mdl 8192]} (42. Rc5 $17) 42... Rxf2+ $19 {[%emt 0:00:00]} 43. Kg1 {[%emt 0:00:00]} Rxc2 {[%emt 0:00:00]} 44. Rxe7 {[%emt 0:00:00]} Rc4 {[%emt 0:00:00]} 45. f5 {[%emt 0:00:00]} Ra4 {[%emt 0:00:00]} (45... Rxh4 46. fxg6 Rg4+ (46... Kxg6 47. Rxa7 Rh3 48. Kg2 $15) 47. Kh1 $17) (45... gxf5 $2 46. Rxa7 Rxh4 47. Ra5 $17) 46. fxg6 {[%emt 0:00:00]} Kxg6 {[%emt 0:00:00]} 47. Re5 {[%emt 0:00:00]} f6 {[%emt 0:00:00]} ({Worse is} 47... Rxh4 48. Ra5 $11) ({Weaker is} 47... Rxa3 48. Rg5+ Kh6 49. Rf5 $15) 48. Re3 {[%emt 0:00:00]} Rxh4 {[%emt 0:00:00]} 49. Rb3 {[%emt 0:00:00]} Ra4 {[%emt 0:00:00]} 50. Kg2 {[%emt 0:00:00]} Kg5 {[%emt 0:00:00]} 51. Kg3 {[%emt 0:00:00]} f5 {[%emt 0:00:00]} 52. Rc3 {[%emt 0:00:00]} a5 {[%emt 0:00:00]} 53. Rb3 {[%emt 0:00:00]} h4+ {[%emt 0:00:00]} 54. Kh2 {[%emt 0:00:00]} Rc4 {[%emt 0:00:00]} 55. Rb5 {[%emt 0:00:00]} Ra4 {[%emt 0:00:00]} 56. Rb3 {[%emt 0:00:00]} Kg4 {[%emt 0:00:00]} 57. Kg2 {[%emt 0:00:00]} Rc4 {[%emt 0:00:00]} 58. Rb5 {[%emt 0:00:00]} h3+ {[%emt 0:00:00]} 0-1

[Event "WSTCC-50 2024"]
[Site "Krakow"]
[Date "2024.07.05"]
[Round "4.2"]
[White "Clark, Gary M"]
[Black "Lampe, Dirk"]
[Result "1-0"]
[ECO "E94"]
[WhiteElo "2299"]
[BlackElo "2158"]
[Annotator "TA"]
[PlyCount "66"]
[EventDate "2024.07.01"]
[EventType "team-tourn"]
[EventCountry "POL"]
[SourceTitle "playchess.com"]
[Source "ChessBase"]
[SourceQuality "1"]
[TimeControl "40/5400+30:1800+30"]

{[%evp 20,66,39,9,79,75,77,69,97,57,112,98,108,78,88,92,185,178,312,322,305,297,289,260,341,298,365,355,385,288,320,277,269,177,335,319,386,302,313,316,323,207,399,360,395,387,488,494,803]} 1. d4 {[%emt 0:00:04]} Nf6 {[%emt 0:00:17]} 2. c4 {[%emt 0:00:46]} g6 {[%emt 0:00:11]} 3. Nc3 {[%emt 0:00:37]} Bg7 {[%emt 0:00:10]} 4. e4 {[%emt 0:00:33]} d6 {[%emt 0:00:17]} 5. Nf3 {[%emt 0:00:48][%cal Bg1f3,Bf3d4,Bd4c2,Bc2e3][%mdl 32]} O-O {[%emt 0:00:54]} 6. Be2 {[%emt 0:00:07]} e5 {[%emt 0:00:28]} 7. O-O {[%emt 0:00:36]} exd4 {[%emt 0:03:23]} 8. Nxd4 {[%emt 0:02:05]} Re8 {[%emt 0:00:09]} 9. f3 {[%emt 0:00:45]} c6 {[%emt 0:00:11]} 10. Nc2 {[%emt 0:01:38]} Na6 {[%emt 0:02:51]} 11. Kh1 {[%emt 0:02:34]} d5 {[%emt 0:26:28]} 12. cxd5 $16 {[%emt 0:08:58]} cxd5 {[%emt 0:00:07]} 13. exd5 {[%emt 0:04:56]} Bf5 {[%emt 0:13:34] Weiß steht etwas besser.} 14. Bb5 {[%emt 0:08:46]} Re5 {[%emt 0:23:03]} ({Günstiger ist} 14... Bd7 $14) 15. Ne3 {[%emt 0:05:07]} Bd7 {[%emt 0:05:46]} 16. Bxd7 {[%emt 0:06:31]} Qxd7 {[%emt 0:02:15]} 17. Nc4 {[%emt 0:02:11]} Rh5 {[%emt 0:01:36] [#]} (17... Ree8 $16 {war einen Versuch wert.}) 18. g4 $1 $18 {[%emt 0:04:13]} Qc7 {[%emt 0:00:16]} (18... Rxh2+ $142 19. Kxh2 Qc7+ 20. d6 Qxc4) 19. gxh5 {[%emt 0:00:10]} Qxc4 {[%emt 0:00:06]} 20. hxg6 {[%emt 0:00:36]} hxg6 {[%emt 0:00:17]} 21. Be3 {[%emt 0:01:46]} Nh5 {[%emt 0:00:20]} 22. Rg1 {[%emt 0:01:20][%cal Bf1g1,Bg1g4,Bg4c4,Bc4d4,Bd4d5][%mdl 32]} Re8 {[%emt 0:00:52]} 23. Rg4 {[%emt 0:00:26]} (23. Bxa7 Nb4 24. Rg4 Nf4) 23... Qc8 {[%emt 0:03:59]} 24. Qd2 {[%emt 0:02:38]} (24. Bxa7 Nf6 25. Rg2 Qf5 $18) 24... Qf5 {[%emt 0:02:06]} 25. Rf1 {[%emt 0:04:12]} Nf6 {[%emt 0:00:36]} 26. Rc4 {[%emt 0:04:03]} Qh3 $2 {[%emt 0:00:52] [#]} (26... b5 27. Rd4 (27. Nxb5 Nxd5 28. Bd4 Nb6 $18) 27... b4) 27. Kg1 {[%emt 0:00:16]} b5 {[%emt 0:02:08]} 28. Rd4 {[%emt 0:03:55]} Nc5 {[%emt 0:03:10]} 29. d6 {[%emt 0:03:18]} Nfd7 {[%emt 0:00:55]} 30. Nd5 {[%emt 0:08:52]} Be5 $2 {[%emt 0:02:50]} (30... Bxd4 {war nötig.} 31. Qxd4 (31. Bxd4 Ne6 $18) 31... Rf8 32. Ne7+ Kh7) 31. Nc7 {[%emt 0:03:59]} Rc8 {[%emt 0:02:26]} 32. Rd5 {[%emt 0:00:41]} Na4 {[%emt 0:03:20]} 33. Bd4 {[%emt 0:00:51]} ({Keinesfalls} 33. Rxb5 a6 $18) (33. Nxb5 Nxb2 34. Bxa7 Nc4 $18) 33... Rxc7 {Gewichteter Fehlerwert: Weiß=0.31/Schwarz=0.63.  Fehler:       	---       	Schwarz=6     Ungenau:       	Weiß=3     	Schwarz=2     OK:         	Weiß=7     	Schwarz=2     Bester:       	Weiß=1     	Schwarz=1     Stark:        	Weiß=1     	---} (33... Bxd4+ $142 34. Rxd4 (34. Qxd4 Qh6 $18) 34... Nac5) 1-0

[Event "WSTCC-50 2024"]
[Site "Krakow"]
[Date "2024.07.05"]
[Round "4.2"]
[White "Ograbek, Grzegorz"]
[Black "Becker, Rogerio Sperb"]
[Result "1-0"]
[ECO "E29"]
[WhiteElo "2063"]
[BlackElo "2053"]
[Annotator "NA RC"]
[PlyCount "59"]
[EventDate "2024.07.01"]
[EventType "team-tourn"]
[EventCountry "POL"]
[SourceTitle "playchess.com"]
[Source "ChessBase"]
[SourceQuality "1"]
[TimeControl "40/5400+30:1800+30"]

1. d4 {[%emt 0:00:03]} Nf6 {[%emt 0:00:08]} 2. c4 {[%emt 0:00:15]} e6 {[%emt 0:00:07]} 3. Nc3 {[%emt 0:00:14]} Bb4 {[%emt 0:00:26]} 4. a3 {[%emt 0:00:39]} Bxc3+ {[%emt 0:00:12]} 5. bxc3 {[%emt 0:00:06]} c5 {[%emt 0:02:54]} 6. e3 {[%emt 0:00:26]} Nc6 {[%emt 0:01:25]} 7. Bd3 {[%emt 0:00:34]} O-O {[%emt 0:02:58]} 8. Ne2 {[%emt 0:01:12]} b6 {[%emt 0:02:46]} 9. e4 {[%emt 0:00:18]} Ne8 {[%emt 0:02:16]} 10. O-O {[%emt 0:00:59]} Na5 {[%emt 0:03:53]} 11. Ng3 {[%emt 0:27:51]} d6 {[%emt 0:27:16]} 12. f4 {[%emt 0:24:47]} f5 {[%emt 0:04:28]} 13. d5 {[%emt 0:02:27]} g6 {[%emt 0:02:29]} 14. dxe6 {[%emt 0:02:48]} Bxe6 {[%emt 0:01:31]} 15. exf5 {[%emt 0:01:25]} gxf5 {[%emt 0:01:18]} 16. Bxf5 {[%emt 0:02:03]} Bxc4 {[%emt 0:03:47]} 17. Bd3 {[%emt 0:15:20]} d5 {[%emt 0:13:24]} 18. f5 {[%emt 0:01:27]} Bxd3 {[%emt 0:04:44]} 19. Qxd3 {[%emt 0:00:08]} Nb3 {[%emt 0:00:36]} 20. Bg5 {[%emt 0:02:49]} Qd7 {[%emt 0:01:52]} 21. Rae1 {[%emt 0:00:46]} Rf7 {[%emt 0:01:57]} 22. Nh5 {[%emt 0:00:29]} Kh8 {[%emt 0:03:55]} 23. Qg3 {[%emt 0:00:30]} Rc8 {[%emt 0:05:08]} 24. Bf4 {[%emt 0:02:51]} Nf6 {[%emt 0:04:15]} 25. Nxf6 {[%emt 0:01:35]} Rxf6 {[%emt 0:00:08]} 26. Be5 {[%emt 0:00:21]} Rcf8 {[%emt 0:00:18]} 27. Qh4 {[%emt 0:02:50]} Qc6 {[%emt 0:00:20]} 28. Rf3 {[%emt 0:01:41]} Nd2 {[%emt 0:03:29]} 29. Rh3 {[%emt 0:00:13]} R8f7 {[%emt 0:00:25]} 30. Bxf6+ {[%emt 0:00:25]} 1-0